Cogmind - Beta 13 --- EXPLORER MODE // 2024.04.23 @ 14:45:22 Player: dp-fld Result: Escaped! Performance ------------- Evolutions (9) 4500 Regions Visited (27) 5400 Robots Destroyed (414) 2070 Value Destroyed (17203) 17203 Prototype IDs (94) 1880 Alien Tech Used (1) 200 Bonus (11621) 11621 TOTAL SCORE: 42874 Bonus ------- High Alert Combat Kills 948 Follower Combat Kills 1441 Entered Garrisons 1000 Used RIF Installer 2000 Network Hubs Disabled 200 Met Zhirov 300 Built Enhanced Grunts 300 A7 Reached Mainframe 300 Met R17 at Cetus 500 Met R17 at Research 2000 Win 3000 Friendly Fire -368 Cogmind --------- Core Integrity 1600/1600 Matter 300/300 Energy 368/680 System Corruption 0% Temperature Warm (123) Movement Hovering (40) Location To Epsilon Eridani Parts ------- > --- POWER (2) -------- Light Quantum Reactor Light Quantum Reactor > --- PROPULSION (8) --- Improved Gyrokinetic Inverter Combat Antigrav System Experimental Gyrokinetic Inverter Combat Linear Gravjet Combat Linear Gravjet Combat Linear Gravjet Combat Linear Gravjet Combat Linear Gravjet > --- UTILITY (13) ----- Large Storage Unit Improved Energy Well Structural Scanner Experimental Optical Array Advanced Sensor Array Advanced Signal Interpreter Reaction Control System Advanced Cloaking Device Centrium Medium Armor Plating Graphene Brace Improved Hacking Suite Relay Coupler [Grunt] (35) Relay Coupler [Hunter] (19) > --- WEAPON (3) ------- Compact Mass Driver (fused) Nanosword Force Lance > --- INVENTORY (15) --- Micro Antimatter Reactor Combat Antigrav System Combat Antigrav System Advanced Cryofiber Web Stasis Canceller Improved Shield Generator Component Analysis Suite Transdimensional Reconstructor Enhanced Nova Cannon Enhanced Nova Cannon Advanced KE Penetrator Compact Mass Driver Hellfire Missile Launcher Advanced Remote Datajack Improved Plasma Cutter Peak State ------------ > --- POWER ------------ Graviton Reactor Light Quantum Reactor > --- PROPULSION ------- Improved Gyrokinetic Inverter Combat Antigrav System Experimental Gyrokinetic Inverter Combat Linear Gravjet Combat Linear Gravjet Combat Linear Gravjet Combat Linear Gravjet Combat Linear Gravjet > --- UTILITY ---------- Large Storage Unit Improved Energy Well Structural Scanner Experimental Optical Array Advanced Sensor Array Advanced Signal Interpreter Advanced Cloaking Device Centrium Medium Armor Plating Graphene Brace Improved Hacking Suite Relay Coupler [Grunt] Relay Coupler [Sentry] Relay Coupler [Hunter] > --- WEAPON ----------- Compact Mass Driver Nanosword Force Lance > --- INVENTORY -------- Enhanced Fission Core Micro Antimatter Reactor Combat Antigrav System Combat Antigrav System Advanced Cryofiber Web Stasis Canceller Improved Shield Generator Component Analysis Suite Transdimensional Reconstructor Enhanced Nova Cannon Advanced KE Penetrator Compact Mass Driver Hellfire Missile Launcher Advanced Remote Datajack Improved Plasma Cutter [Rating: 193] Favorites ----------- Power Micro Nuclear Core Engine Heavy Ion Engine Power Core Micro Nuclear Core Reactor Light Antimatter Reactor Propulsion Advanced Treads Treads Advanced Treads Leg Aluminum Leg Wheel Armored Huge Wheel Hover Unit Improved Linear Gravjet Utility Large Storage Unit Device Kinecellerator Storage Large Storage Unit Processor Experimental Melee Analysis Suite Hackware Relay Coupler [Grunt] Protection Improved Utility Shielding Weapon Gravity Flail Energy Gun Advanced Variable Charge Gun Ballistic Gun Improved KE Penetrator Ballistic Cannon Advanced Assault Cannon Launcher Heavy Shock Bomb Launcher Special Weapon Remote Datajack Impact Weapon Gravity Flail Slashing Weapon Power Sword Piercing Weapon Force Lance Special Melee Weapon Advanced Datajack Build | -11 -10 -10 -8 -8 -8 -8 -7 -7 -7 -7 -6 -6 -6 -6 -5 -5 -5 -5 -5 -4 -4 -4 -4 -3 -3 -2 -1 ------- Run | Yrd Mat Sub Mat Gar Mat Gar Fac Gar Fac Gar Fac Was Fac Gar Fac Ext Cet Arc Hub Fac Upp Upp Zhi Pro Res Res Acc Slots Evolved 19 | . 1 . 4 . . . 2 . . . 2 . . . 2 . . . . 2 . . . . 2 2 2 Power 1 | . . . . . . . . . . . . . . . 1 . . . . . . . . . . . . Propulsion 6 | . . . 1 . . . . . . . 2 . . . . . . . . 1 . . . . 1 . 1 Utility 11 | . 1 . 2 . . . 2 . . . . . . . 1 . . . . 1 . . . . 1 2 1 Weapon 1 | . . . 1 . . . . . . . . . . . . . . . . . . . . . . . . Parts Attached 557 | 2 13 10 36 8 9 3 37 18 31 18 55 . 40 5 80 14 13 7 8 33 8 6 11 2 46 26 18 Power 51 | . 2 . 2 . 1 . 2 1 1 1 9 . 4 . 13 1 1 . . 4 1 . 2 . 4 . 2 Engine 9 | . 2 . . . 1 . 1 . . . 1 . 1 . 3 . . . . . . . . . . . . Core 32 | . . . 2 . . . 1 1 1 1 8 . 3 . 10 1 1 . . 2 . . . . 1 . . Reactor 10 | . . . . . . . . . . . . . . . . . . . . 2 1 . 2 . 3 . 2 Propulsion 130 | 2 3 1 9 . 3 1 8 5 9 1 14 . 16 1 21 . . . 2 8 . . 5 . 13 3 5 Treads 38 | 2 3 1 9 . 3 1 8 4 6 1 . . . . . . . . . . . . . . . . . Leg . | . . . . . . . . . . . . . . . . . . . . . . . . . . . . Wheel 1 | . . . . . . . . . 1 . . . . . . . . . . . . . . . . . . Hover 91 | . . . . . . . . 1 2 . 14 . 16 1 21 . . . 2 8 . . 5 . 13 3 5 Flight . | . . . . . . . . . . . . . . . . . . . . . . . . . . . . Utility 202 | . 2 3 14 2 2 . 15 4 4 5 18 . 8 3 31 3 6 5 2 13 3 4 4 2 23 18 8 Device 108 | . . 3 5 1 . . 7 2 1 . 4 . 2 2 19 1 3 5 1 11 2 3 2 2 14 13 5 Storage 14 | . 1 . . . 1 . 1 . 1 . 2 . 2 . 2 . . . . . . . 2 . 1 . 1 Processor 15 | . . . 3 . . . 4 . . . . . . . 1 . . . . . 1 1 . . 2 1 2 Hackware 20 | . . . . 1 . . . . 1 2 3 . 2 1 1 . 1 . . . . . . . 5 3 . Protection 45 | . 1 . 6 . 1 . 3 2 1 3 9 . 2 . 8 2 2 . 1 2 . . . . 1 1 . Artifact . | . . . . . . . . . . . . . . . . . . . . . . . . . . . . Weapon 174 | . 6 6 11 6 3 2 12 8 17 11 14 . 12 1 15 10 6 2 4 8 4 2 . . 6 5 3 Energy Gun 6 | . . . . . . . 1 . . . . . . . . . 1 . . 1 1 1 . . . . 1 Energy Cannon . | . . . . . . . . . . . . . . . . . . . . . . . . . . . . Ballistic Gun 36 | . 2 2 4 . . . 4 4 6 5 2 . . . 3 . 1 1 . . . . . . 2 . . Ballistic Cannon 23 | . 4 1 1 . 2 . 2 1 . . 1 . 2 . 3 1 . . 1 1 . . . . 2 1 . Launcher 21 | . . 2 2 2 . . 1 1 . 1 . . 2 . 1 3 2 . . 2 . . . . 1 1 . Special Weapon 23 | . . 1 1 1 . 1 . . 1 2 4 . . 1 3 2 . 1 2 2 . . . . . 1 . Impact Weapon 52 | . . . 3 3 1 1 4 2 10 3 3 . 8 . 4 4 1 . 1 . 1 1 . . 1 1 . Slashing Weapon 11 | . . . . . . . . . . . 4 . . . 1 . 1 . . 1 2 . . . . 1 1 Piercing Weapon 1 | . . . . . . . . . . . . . . . . . . . . . . . . . . . 1 Special Melee Weapon 1 | . . . . . . . . . . . . . . . . . . . . 1 . . . . . . . Unidentified Prototypes 18 | . . . 1 . . . 6 . . . . . . . 2 . 3 . . . . . 5 . . . 1 Corrupted Parts 3 | . . . . . . . . . . . . . . . . . 2 1 . . . . . . . . . System Corruption 5 | . . . . . . . . . . . . . . . . . 4 1 . . . . . . . . . Parts Lost 31 | . . . . . . . . 3 2 1 2 . 1 5 4 . . . 1 5 . . . . 2 5 . Power 1 | . . . . . . . . . 1 . . . . . . . . . . . . . . . . . . Propulsion 17 | . . . . . . . . 3 . . 1 . 1 5 2 . . . 1 4 . . . . . . . Utility 11 | . . . . . . . . . 1 1 1 . . . 1 . . . . . . . . . 2 5 . Weapon 2 | . . . . . . . . . . . . . . . 1 . . . . 1 . . . . . . . Highest Loss Streak 4 | . . . . . . . . 2 1 1 1 . 1 4 2 . . . 1 2 . . . . 1 2 . To Critical Strikes . | . . . . . . . . . . . . . . . . . . . . . . . . . . . . Average Slot Usage (%) 97 | . 99 100 96 93 92 93 97 99 98 92 99 100 99 94 98 100 100 100 99 99 100 100 100 100 99 99 99 Engine 2 | . 12 12 . . 5 6 5 . . . . . 2 5 . 3 . . . . . . . . . . . Core 4 | . . . 6 6 . . 3 11 10 6 5 6 3 . 9 6 11 11 11 9 5 5 5 5 2 . . Treads 11 | . 24 25 23 26 25 26 22 16 16 5 . . . . . . . . . . . . . . . . . Hover 13 | . . . . . . . . . . . 30 31 30 27 26 27 27 27 26 29 30 30 30 30 31 29 29 Device 6 | . . 11 13 5 6 6 6 5 2 2 1 . . 4 6 5 4 5 3 12 13 18 16 15 9 14 15 Storage 6 | . 12 12 7 6 6 6 5 6 6 6 5 6 6 5 4 5 5 5 5 5 5 5 8 10 4 4 6 Processor 10 | . . . 9 13 13 13 20 31 30 26 12 6 6 6 . . . . . . 4 5 5 5 5 4 4 Hackware 10 | . . . . . . . . . 1 3 13 18 26 25 27 27 32 33 30 21 20 16 15 15 19 21 17 Protection 8 | . 25 12 7 13 12 13 12 6 8 13 10 12 4 1 3 4 . . 3 6 1 . . . 4 4 3 Ballistic Gun 4 | . 9 17 12 13 . . 2 8 10 2 1 . . . 1 . . 3 5 4 . . . . 3 . . Ballistic Cannon 4 | . 9 4 7 . 12 13 5 . . . 1 6 2 . 3 4 2 . . . . . . . 3 7 3 Impact Weapon 5 | . . . 3 4 6 5 8 8 7 12 8 . 3 11 7 9 4 . . . 1 5 5 5 4 . . Slashing Weapon 1 | . . . . . . . . . . . 4 12 11 . 1 . 4 5 4 4 3 . . . . 3 3 Naked Turns . | . . . . . . . . . . . . . . . . . . . . . . . . . . . . Heaviest Build 125 | 19 37 37 56 55 57 57 89 78 119 125 101 48 48 45 52 59 60 55 55 65 65 68 72 70 80 86 91 Greatest Support 112 | 40 40 40 84 84 84 84 88 66 72 28 52 52 52 50 54 54 54 54 55 68 68 68 70 70 104 104 112 Greatest Overweight (x) 8 | . 8 . . . . . 1 1 3 4 1 . 1 . 2 1 1 1 1 1 . . 1 . . 1 . Average Overweight (x) . | . . . . . . . . 1 1 3 . . . . . . . . . . . . . . . . . Largest Inventory Capacity 25 | 10 15 15 15 15 15 15 20 20 25 25 25 15 15 15 15 15 15 15 15 15 15 15 15 15 15 15 15 Average Capacity 16 | 10 12 15 15 15 15 15 19 20 22 25 18 15 15 13 14 15 15 15 15 15 15 15 15 15 15 15 15 Most Carried 25 | 7 15 15 15 15 15 15 20 20 23 25 25 15 15 15 15 15 15 15 15 15 15 15 15 15 15 15 15 Average Carried 16 | 6 11 14 14 14 14 14 18 19 20 24 17 15 14 13 13 15 14 14 14 14 14 14 14 15 14 14 14 Final Capacity 25 | 10 15 15 15 15 15 15 20 20 25 25 15 15 15 5 15 15 15 15 15 15 15 15 15 15 15 15 15 Final Carried 25 | 7 15 15 15 15 15 15 20 20 23 25 15 15 15 5 15 15 14 15 14 15 15 14 15 15 14 15 15 Class Distribution -------------------- 32% | Bothacker-Mutant 27% | Hacker-Mutant 22% | Bothacker-Gladiator 3% | Hacker-Sprinter 3% | Hacker-Gunner Dominant Class ---------------- Hacker-Mutant | -10/Materials Hacker-Mutant | -10/Subcaves Hacker-Gunner | -8/Materials Hacker-Mutant | -8/Garrison Hacker-Mutant | -8/Materials Bothacker-Mutant | -8/Garrison Bothacker-Mutant | -7/Factory Bothacker-Gladiator | -7/Garrison Bothacker-Mutant | -7/Factory Hacker-Gladiator | -7/Garrison Bothacker-Gladiator | -6/Factory Bothacker-Gladiator | -6/Waste Bothacker-Gladiator | -6/Factory Bothacker-Sprinter | -6/Garrison Bothacker-Mutant | -5/Factory Bothacker-Mutant | -5/Extension Hacker-Mutant | -5/Cetus Hacker-Mutant | -5/Archives Hacker-Mutant | -5/Hub_04(d) Bothacker-Mutant | -4/Factory Bothacker-Mutant | -4/Upper Caves Hacker-Mutant | -4/Upper Caves Hacker-Mutant | -4/Zhirov Hacker-Scout | -3/Proximity Caves Hacker-Mutant | -3/Research Bothacker-Mutant | -2/Research Bothacker-Mutant | -1/Access Resources | -11 -10 -10 -8 -8 -8 -8 -7 -7 -7 -7 -6 -6 -6 -6 -5 -5 -5 -5 -5 -4 -4 -4 -4 -3 -3 -2 -1 ----------- Run | Yrd Mat Sub Mat Gar Mat Gar Fac Gar Fac Gar Fac Was Fac Gar Fac Ext Cet Arc Hub Fac Upp Upp Zhi Pro Res Res Acc Matter Collected 11254 | 220 297 219 1028 335 511 452 732 439 577 451 767 91 418 91 1112 579 157 178 20 539 222 54 . 49 705 532 479 Remotely 317 | . . . 171 . . . 146 . . . . . . . . . . . . . . . . . . . . Salvage Created 14420 | 113 349 74 1400 548 518 772 980 1187 746 558 1398 . 776 114 1444 604 234 314 . 833 . 93 . . 373 549 443 Parts 710 | 7 27 9 71 41 25 36 46 48 30 12 50 . 28 1 64 26 8 28 . 60 . 6 . . 19 50 18 Haulers Intercepted 9 | . 2 . 6 . . . . . . . . . . . 1 . . . . . . . . . . . . Recyclers Shooed 11 | . . . 4 . . . 1 . . . 1 . . . . 2 . . . 1 . . . . 1 1 . Parts Field Recycled . | . . . . . . . . . . . . . . . . . . . . . . . . . . . . Retrieved Matter . | . . . . . . . . . . . . . . . . . . . . . . . . . . . . Parts Self-Destructed . | . . . . . . . . . . . . . . . . . . . . . . . . . . . . Prevented . | . . . . . . . . . . . . . . . . . . . . . . . . . . . . Kills | -11 -10 -10 -8 -8 -8 -8 -7 -7 -7 -7 -6 -6 -6 -6 -5 -5 -5 -5 -5 -4 -4 -4 -4 -3 -3 -2 -1 ------- Run | Yrd Mat Sub Mat Gar Mat Gar Fac Gar Fac Gar Fac Was Fac Gar Fac Ext Cet Arc Hub Fac Upp Upp Zhi Pro Res Res Acc Combat Hostiles Destroyed 271 | . 6 6 26 23 14 21 15 25 15 16 21 . 18 3 23 9 3 . . 10 . 1 . . 4 12 . Melee 46 | . . . . . . . 5 3 4 7 9 . 11 1 4 1 . . . . . . . . . 1 . Guns 67 | . 4 1 16 16 . . 2 11 6 3 4 . . . 1 . . . . 1 . 1 . . 1 . . Cannons 92 | . 2 5 8 . 14 21 7 . . . . . 1 . 13 7 . . . 4 . . . . 3 7 . AOE 27 | . . . 2 7 . . 1 5 . 1 . . . . 1 1 . . . 5 . . . . . 4 . Classes Destroyed 22 | 2 5 1 4 2 . 2 1 3 . . . . . . . . . . . . . 1 . . 1 . . Worker 29 | . . . 1 . 1 . 3 . . . 5 . 3 . 6 1 . . . 3 . . . . . 4 2 Builder 31 | . . . 2 . 1 . . . 1 . 5 . . . 7 1 . . . 4 . . . . 3 6 1 Tunneler 8 | 2 . . . . 1 . 1 . . . . . 1 . 2 1 . . . . . . . . . . . Hauler 9 | . 2 . 6 . . . . . . . . . . . 1 . . . . . . . . . . . . Recycler 22 | 1 1 . 4 . . . 6 . . . 1 . 1 . 2 . . . . 3 . . . . 1 . 2 Mechanic 1 | . 1 . . . . . . . . . . . . . . . . . . . . . . . . . . Operator 20 | . . . 1 . . . 2 . 2 . 2 . . . 1 1 . 9 . 1 . . . . . . 1 Watcher 22 | . 2 . . . 2 . 2 . . . 3 . 1 . 4 1 . . . 3 . . . . 1 1 2 Swarmer 82 | . 4 4 6 9 3 . 3 . 4 4 7 . 11 . 15 3 . . . 4 . . . . 3 2 . Cutter 5 | . . . . . . . . 2 . 2 . . 1 . . . . . . . . . . . . . . Saboteur 4 | . . . . 4 . . . . . . . . . . . . . . . . . . . . . . . Grunt 64 | . 2 1 9 7 2 9 . 17 5 7 5 . . . . . . . . . . . . . . . . Brawler 2 | . . . . . . . . 1 . . 1 . . . . . . . . . . . . . . . . Duelist 4 | . . . . 2 . . . 1 . . . . 1 . . . . . . . . . . . . . . Protector 2 | . . . . . . 1 1 . . . . . . . . . . . . . . . . . . . . Sentry 47 | . . 1 10 1 7 8 2 2 2 1 4 . 2 2 1 4 . . . . . . . . . . . Demolisher 1 | . . . . . . 1 . . . . . . . . . . . . . . . . . . . . . Hunter 16 | . . . 1 . 2 2 3 1 2 . 2 . . . . 2 . . . 1 . . . . . . . Programmer 38 | . . . . . . . 6 . 2 2 2 . 3 1 7 . . . . 5 . . . . . 10 . Behemoth 1 | . . . . . . . . 1 . . . . . . . . . . . . . . . . . . . Cetus Guard 3 | . . . . . . . . . . . . . . . . . 3 . . . . . . . . . . Striker 1 | . . . . . . . . . . . . . . . . . . . . . . . . . 1 . . Savage 1 | . . . . . . . . . . . . . . . . 1 . . . . . . . . . . . Mutant 1 | . . . . . . . . . . . . . . . . . . . . . . 1 . . . . . Best Kill Streak 15 | 2 4 4 7 8 3 3 5 8 3 3 5 . 4 1 5 2 2 6 . 15 . 1 . . 3 5 4 Combat Bots Only 8 | . 1 4 7 8 2 3 2 8 3 3 4 . 3 1 3 2 2 . . 6 . 1 . . 3 4 . Max Kills in Single Turn 14 | 1 1 1 2 4 1 2 4 2 1 1 1 . 1 1 2 2 1 1 . 14 . 1 . . 1 3 1 Gunslinging 1 | . . . . 1 . . . . . . . . . . . . . . . . . . . . . . . Exploded 5 | . . . 1 4 . . 1 2 . 1 . . . . 1 1 . . . 5 . . . . . 2 . Melee 1 | . . . . . . . 1 1 1 1 1 . 1 1 1 1 . . . . . . . . . 1 . Uniques/NPCs Destroyed . | . . . . . . . . . . . . . . . . . . . . . . . . . . . . Combat | -11 -10 -10 -8 -8 -8 -8 -7 -7 -7 -7 -6 -6 -6 -6 -5 -5 -5 -5 -5 -4 -4 -4 -4 -3 -3 -2 -1 -------- Run | Yrd Mat Sub Mat Gar Mat Gar Fac Gar Fac Gar Fac Was Fac Gar Fac Ext Cet Arc Hub Fac Upp Upp Zhi Pro Res Res Acc Hostile Shots Fired 2025 | . 18 38 79 37 40 35 158 170 124 115 205 . 136 153 126 39 7 2 5 154 3 3 . . 55 323 . Missed 856 | . 2 8 18 12 10 10 59 64 40 42 80 . 49 84 54 17 3 1 2 96 1 3 . . 31 170 . Damage Taken 10977 | . 106 194 534 208 261 328 762 805 677 579 877 . 732 470 885 307 96 18 95 835 26 . . . 323 1859 . Core 1455 | . 12 18 20 9 18 43 104 104 113 69 113 . 179 92 146 77 52 . . 91 . . . . 36 159 . Absorbed by Shields 631 | . . . . . . . 9 43 . 25 . . . . . 8 . . . . . . . . . 546 . Redirected to Shielding 300 | . . . . 9 . 7 14 . 5 21 26 . 23 1 89 9 7 . 18 71 . . . . . . . Ignored by Resistances 7038 | . 70 129 335 131 161 196 489 537 426 380 582 . 458 301 579 185 57 11 54 490 15 . . . 189 1263 . Regen/Repaired (Parts) 1044 | . . . . . 253 . . . 272 . 175 . 238 . 63 . . . . . . . . . 43 . . Core Remaining (%) 81 | 100 . 88 . . . 83 . . . 44 . . . 54 . . . . 72 . . . . 92 97 89 100 Volleys Fired 548 | 5 30 19 63 27 32 31 33 38 16 26 14 . 4 7 45 42 6 5 6 39 . 2 . . 20 38 . Largest 3 | 2 2 2 3 2 2 2 2 3 2 3 1 . 1 1 3 2 1 1 1 2 . 2 . . 2 2 . Hottest 286 | 90 90 135 100 56 96 96 96 114 66 102 66 . 66 5 140 112 46 240 66 101 . 286 . . 240 132 . Shots Fired 900 | 10 50 28 149 51 65 63 57 67 32 38 14 . 4 7 49 45 6 5 6 53 . 4 . . 28 69 . Gun 380 | 10 30 4 85 49 . . 15 55 31 30 12 . . . 3 . . 3 2 35 . 2 . . 14 . . Cannon 451 | . 20 15 62 . 65 63 42 7 . . 1 . 4 . 42 36 . . 2 12 . . . . 14 66 . Launcher 32 | . . 2 1 2 . . . 5 . 3 . . . . 1 5 6 . . 3 . 2 . . . 2 . Special 37 | . . 7 1 . . . . . 1 5 1 . . 7 3 4 . 2 2 3 . . . . . 1 . Kinetic 798 | . 44 19 147 49 65 63 57 62 31 30 13 . 4 . 45 36 . . 4 41 . . . . 22 66 . Thermal 43 | 10 6 7 1 . . . . . . 1 . . . . . . . 3 . 6 . 2 . . 6 1 . Explosive 6 | . . 2 1 . . . . . . . . . . . 1 . . . . . . . . . . 2 . Electromagnetic 26 | . . . . 2 . . . 5 . 3 . . . . . 5 6 . . 3 . 2 . . . . . Robot Hit Streak 54 | 6 21 26 26 18 12 21 15 53 54 12 18 . 2 6 13 10 2 7 2 8 . 11 . . 16 30 . Robot Miss Streak 4 | 1 4 1 4 4 2 1 2 1 1 1 1 . . 1 3 2 1 . 1 4 . . . . 1 2 . Penetration Max 1 | . . . . . . . . 1 . . 1 . . . 1 . . . . 1 . . . . 1 1 . Secondary Targets 3 | . . . . 1 . . . . 1 1 . . . . . . . . . . . . . . . . . Max Gunslinging Chain 1 | . . . . 1 . . . . 1 1 . . . . . . . . . . . . . . . . . Shots Hit Robots 934 | 8 39 16 113 43 49 44 60 75 44 51 71 . 42 21 65 33 6 16 2 42 . 3 . . 22 58 11 Core Hits 487 | 4 18 8 95 82 16 25 24 36 11 9 14 . 14 . 28 22 9 5 . 24 . 2 . . 10 23 8 Critical Kills 16 | . . . . . . . 3 . 2 3 3 . . . 4 . . . . . . . . . 1 . . Critical Parts Destroyed 68 | . . . 2 . 1 . 6 4 6 9 11 . 8 4 9 . 1 . . 6 . . . . 1 . . Critical Strikes 123 | 1 . . 2 . 6 9 10 6 8 12 15 . 9 7 14 2 1 . . 9 . . . . 5 6 1 Burn 1 | 1 . . . . . . . . . . . . . . . . . . . . . . . . . . . Destroy 13 | . . . . . . . 1 1 1 2 . . . . 2 . . . . 5 . . . . 1 . . Blast 27 | . . . . . 5 9 1 . . . . . . . 1 2 . . . 2 . . . . 3 4 . Smash 77 | . . . 2 . 1 . 8 5 7 10 15 . 8 7 11 . 1 . . 1 . . . . 1 . . Sever 5 | . . . . . . . . . . . . . 1 . . . . . . 1 . . . . . 2 1 Melee Attacks 789 | . . . 12 5 6 13 52 52 35 61 126 . 115 16 120 11 8 11 5 41 3 1 . . 28 48 20 Impact 572 | . . . 12 5 6 13 52 52 35 61 84 . 48 16 113 11 5 . . 14 . 1 . . 28 16 . Slashing 215 | . . . . . . . . . . . 42 . 67 . 7 . 3 11 5 27 3 . . . . 32 18 Piercing 2 | . . . . . . . . . . . . . . . . . . . . . . . . . . . 2 Sneak Attacks 77 | . . . 6 . 3 . 4 . 2 1 10 . 7 . 16 1 . 9 . 3 . . . . 3 7 5 Combat Hostiles 1 | . . . . . . . . . . 1 . . . . . . . . . . . . . . . . . Follow-up Attacks 21 | . . . . . . . . 2 2 4 6 . 3 2 1 . 1 . . . . . . . . . . Damage Inflicted 46057 | 93 646 285 3123 1299 1653 1326 3101 3043 2037 2378 4719 . 2809 824 5440 1647 661 1245 . 3197 . 146 . . 1143 4288 954 Guns 7233 | 93 426 44 1539 1066 . . 227 1245 555 454 355 . . . 23 . . 147 . 659 . 146 . . 254 . . Cannons 9913 | . 220 155 823 . 1274 1326 858 172 . . . . 48 . 1112 921 . . . 499 . . . . 502 2003 . Explosions 4872 | . . 14 211 233 . . 332 462 . 44 . . . . 350 376 579 . . 1351 . . . . . 920 . Melee 23925 | . . . 526 . 379 . 1684 1164 1482 1880 4364 . 2761 824 3955 350 82 1098 . 688 . . . . 387 1347 954 Ramming 24 | . . . 24 . . . . . . . . . . . . . . . . . . . . . . . . Kinetic 16554 | . 597 199 2362 1066 1274 1326 1085 1417 555 454 355 . 48 . 1135 921 . . . 1158 . . . . 599 2003 . Thermal 2388 | 93 49 72 171 146 . . . 106 . . . . . . 151 . 22 147 . 1110 . 146 . . 157 18 . Explosive 1448 | . . 14 40 . . . 332 . . . . . . . 142 . . . . . . . . . . 920 . Electromagnetic 1718 | . . . . 87 . . . 356 . 44 . . . . 57 376 557 . . 241 . . . . . . . Impact 18443 | . . . 526 . 379 . 1684 1164 1482 1880 3729 . 1816 824 3903 350 30 . . 289 . . . . 387 . . Slashing 5482 | . . . . . . . . . . . 635 . 945 . 52 . 52 1098 . 399 . . . . . 1347 954 Piercing . | . . . . . . . . . . . . . . . . . . . . . . . . . . . . Highest Corruption 16 | . . . 1 1 1 1 4 4 7 9 . . 1 1 4 3 4 1 1 2 . . . . . 16 . Average Corruption 3 | . . . 1 1 1 1 2 4 5 8 . . 1 1 2 3 2 1 1 1 . . . . . 6 . Corruption Purged 16 | . . . . . . . . . . . . . . . 4 . 6 2 . 4 . . . . . . . Corruption Blocked 2 | . . . . . . . 2 . . . . . . . . . . . . . . . . . . . . Effects 286 | . . . 3 6 14 13 41 33 54 56 . . 2 . 13 16 10 . . 4 . . . . . 21 . Message Errors 84 | . . . . 5 5 6 12 4 16 15 . . 1 . 5 2 6 . . 1 . . . . . 6 . Matter Fused 63 | . . . 1 . 6 3 8 6 12 15 . . 1 . 3 2 2 . . 3 . . . . . 1 . Heat Flow Errors 29 | . . . 1 . . 1 7 6 4 4 . . . . . 3 . . . . . . . . . 3 . Energy Discharges 25 | . . . . 1 . . 4 2 2 10 . . . . 1 2 . . . . . . . . . 3 . Parts Rejected 3 | . . . 1 . . . . . 2 . . . . . . . . . . . . . . . . . . Parts Fused 2 | . . . . . . 1 . . . . . . . . . . . . . . . . . . . 1 . Data Loss (minor) 36 | . . . . . 2 1 3 5 7 8 . . . . 4 2 1 . . . . . . . . 3 . Data Loss (major) 14 | . . . . . . . 4 2 3 2 . . . . . 2 . . . . . . . . . 1 . Misfires 14 | . . . . . 1 1 2 6 2 . . . . . . 1 . . . . . . . . . 1 . Alerts 13 | . . . . . . . 1 2 6 1 . . . . . 2 1 . . . . . . . . . . Misdirections 1 | . . . . . . . . . . . . . . . . . . . . . . . . . . 1 . Weapon Failures 2 | . . . . . . . . . . 1 . . . . . . . . . . . . . . . 1 . Overload Shots 5 | . . . . . . . . . . . . . . . . . . 2 . . . 2 . . 1 . . Overflow Damage 11746 | . . . 394 . 338 10 928 458 807 811 1874 . 1302 222 2348 128 47 375 . 476 . . . . 265 949 14 Projectiles 381 | . . . 4 . 34 10 18 . . . . . . . 78 31 . . . 5 . . . . 18 183 . Explosions 507 | . . . . . . . 53 . . . . . . . 60 26 17 . . 163 . . . . . 188 . Melee 10858 | . . . 390 . 304 . 857 458 807 811 1874 . 1302 222 2210 71 30 375 . 308 . . . . 247 578 14 Knockbacks 119 | . . . 9 . 6 6 14 4 3 10 9 . 9 2 18 9 . . . 8 . . . . 3 9 . Impact 68 | . . . 5 . 2 . 6 4 3 10 9 . 9 1 12 2 . . . 4 . . . . 1 . . Kinetic 47 | . . . 4 . 4 6 7 . . . . . . . 5 6 . . . 4 . . . . 2 9 . Secondary 4 | . . . . . . . 1 . . . . . . 1 1 1 . . . . . . . . . . . Self-Inflicted Damage 240 | . . 15 36 . . . 64 9 . . . . . . 111 . . . . 5 . . . . . . . Shots 11 | . . 1 1 . . . 1 3 . . . . . . 4 . . . . 1 . . . . . . . Rammed 2 | . . . 2 . . . . . . . . . . . . . . . . . . . . . . . . Targets Rammed 3 | . . . 3 . . . . . . . . . . . . . . . . . . . . . . . . Kicked . | . . . . . . . . . . . . . . . . . . . . . . . . . . . . Crushed 1 | . . . 1 . . . . . . . . . . . . . . . . . . . . . . . . Highest Temperature 389 | 120 78 . 220 48 261 276 262 389 194 202 243 73 302 196 319 387 326 337 230 220 8 354 . . 209 242 143 Average Temperature 64 | 53 16 . 50 13 62 77 117 102 57 75 60 39 80 57 74 78 103 90 82 14 5 181 . . 38 66 47 Received Heat Transfer 2551 | . 63 69 234 117 108 153 72 515 156 150 264 . 102 126 63 42 18 9 9 114 47 . . . 21 99 . Effects 13 | . . . . . . 2 . 1 . . . . 1 . 3 2 . 2 . . . 1 . . . 1 . Shutdowns 3 | . . . . . . . . . . . . . . . . 1 . 1 . . . 1 . . . . . Energy Bleed 3 | . . . . . . . . 1 . . . . 1 . . . . . . . . . . . . 1 . Interference 4 | . . . . . . 2 . . . . . . . . 2 . . . . . . . . . . . . Matter Decay 1 | . . . . . . . . . . . . . . . . . . 1 . . . . . . . . . Short Circuit 1 | . . . . . . . . . . . . . . . 1 . . . . . . . . . . . . Damage (minor) 1 | . . . . . . . . . . . . . . . . 1 . . . . . . . . . . . Siege Activations . | . . . . . . . . . . . . . . . . . . . . . . . . . . . . Robots Corrupted 4 | . . . . . . . . . . . . . . . 1 . 3 . . . . . . . . . . Combat Hostiles 3 | . . . . . . . . . . . . . . . . . 3 . . . . . . . . . . Parts Fried 122 | . . . 5 . 3 1 6 11 6 4 24 . 18 1 34 1 3 . . 2 . . . . 3 . . Impact Corruptions 264 | . . . 12 . 8 . 26 12 21 24 51 . 34 10 49 5 1 . . 5 . . . . 6 . . Robots Melted . | . . . . . . . . . . . . . . . . . . . . . . . . . . . . Combat Hostiles . | . . . . . . . . . . . . . . . . . . . . . . . . . . . . Parts Melted 5 | 2 1 . . . . . . . . . . . . . . . . . . 2 . . . . . . . Heat Transferred 2542 | 334 136 150 100 200 . . . 150 . . . . . . 100 . 50 137 . 850 . 100 . . 198 37 . Parts Sabotaged . | . . . . . . . . . . . . . . . . . . . . . . . . . . . . Parts Stolen . | . . . . . . . . . . . . . . . . . . . . . . . . . . . . Parts Stripped . | . . . . . . . . . . . . . . . . . . . . . . . . . . . . Power Chain Reactions 8 | . . . . 2 . . . 2 . . . . . . 1 . 1 . . 2 . . . . . . . Alert | -11 -10 -10 -8 -8 -8 -8 -7 -7 -7 -7 -6 -6 -6 -6 -5 -5 -5 -5 -5 -4 -4 -4 -4 -3 -3 -2 -1 ------- Run | Yrd Mat Sub Mat Gar Mat Gar Fac Gar Fac Gar Fac Was Fac Gar Fac Ext Cet Arc Hub Fac Upp Upp Zhi Pro Res Res Acc Peak Influence 1040 | 15 205 . 325 828 296 1040 489 947 444 732 389 3 269 236 485 535 346 182 159 837 . . . . 155 770 411 Initial 405 | . 7 . . 56 295 90 405 40 369 41 285 3 . 54 91 36 107 12 43 41 . . . . . 31 289 Average 198 | 8 57 . 109 468 120 544 123 515 153 370 99 2 82 150 167 193 247 162 74 433 . . . . 53 218 334 Maximum Alert Level 3 | . 1 . 1 3 1 3 2 3 2 3 1 . 1 1 2 2 1 . . 3 . . . . . 3 2 Low Security (%) 62 | 100 87 . 76 28 76 7 76 6 69 23 80 100 85 71 57 56 12 100 100 26 . . . . 100 62 2 Level 1 21 | . 12 . 23 9 23 12 11 33 20 29 19 . 14 28 38 41 87 . . 21 . . . . . 13 76 Level 2 12 | . . . . 42 . 58 12 20 10 40 . . . . 3 1 . . . 43 . . . . . 21 21 Level 3 4 | . . . . 19 . 21 . 40 . 6 . . . . . . . . . 8 . . . . . 1 . Level 4 . | . . . . . . . . . . . . . . . . . . . . . . . . . . . . Level 5 . | . . . . . . . . . . . . . . . . . . . . . . . . . . . . High Security . | . . . . . . . . . . . . . . . . . . . . . . . . . . . . Max Security . | . . . . . . . . . . . . . . . . . . . . . . . . . . . . Squads Dispatched 60 | . . . 2 . 2 . 6 . 5 . 9 . 4 . 7 5 . . . 3 . . . . 10 7 . Investigation 14 | . . . 1 . . . . . . . 3 . . . 2 2 . . . . . . . . 6 . . Extermination 20 | . . . . . . . 5 . 2 . 3 . 3 . 3 . . . . 1 . . . . . 3 . Reinforcement 23 | . . . 1 . . . 1 . 3 . 3 . 1 . 2 3 . . . 2 . . . . 4 3 . Assault . | . . . . . . . . . . . . . . . . . . . . . . . . . . . . Garrison 3 | . . . . . 2 . . . . . . . . . . . . . . . . . . . . 1 . Intercept . | . . . . . . . . . . . . . . . . . . . . . . . . . . . . Searches Triggered 2 | . . . . . . . . . . . . . . . . . . . . . . . . . . 1 1 Construction Impeded 4 | . . . . . . . . . . . . . . . . 2 . . . 2 . . . . . . . Haulers Reinforced . | . . . . . . . . . . . . . . . . . . . . . . . . . . . . Active Scanning Responses . | . . . . . . . . . . . . . . . . . . . . . . . . . . . . Cargo Convoy Interrupts 2 | . . . . . . . 1 . . . . . 1 . . . . . . . . . . . . . . Stealth | -11 -10 -10 -8 -8 -8 -8 -7 -7 -7 -7 -6 -6 -6 -6 -5 -5 -5 -5 -5 -4 -4 -4 -4 -3 -3 -2 -1 --------- Run | Yrd Mat Sub Mat Gar Mat Gar Fac Gar Fac Gar Fac Was Fac Gar Fac Ext Cet Arc Hub Fac Upp Upp Zhi Pro Res Res Acc Distress Signals 38 | . 2 . 4 . 2 . . . 2 . 2 . 3 . 3 2 2 . . 5 . . . . 5 6 . Communications Jammed . | . . . . . . . . . . . . . . . . . . . . . . . . . . . . Distress Signals . | . . . . . . . . . . . . . . . . . . . . . . . . . . . . Times Spotted 621 | . 11 8 52 17 26 21 30 26 23 23 45 6 39 18 62 33 10 5 10 46 2 1 . . 30 74 3 Peak Tracking Total 17 | . 3 6 6 4 4 4 6 8 4 3 5 6 5 9 6 6 5 1 6 10 1 1 . . 7 17 1 Tactical Retreats 84 | . 3 1 1 1 1 1 . 2 2 1 5 . 6 3 16 4 1 . . 12 2 . . . 7 15 . Traps | -11 -10 -10 -8 -8 -8 -8 -7 -7 -7 -7 -6 -6 -6 -6 -5 -5 -5 -5 -5 -4 -4 -4 -4 -3 -3 -2 -1 ------- Run | Yrd Mat Sub Mat Gar Mat Gar Fac Gar Fac Gar Fac Was Fac Gar Fac Ext Cet Arc Hub Fac Upp Upp Zhi Pro Res Res Acc Traps Triggered 45 | . 2 . 3 . . 4 1 10 1 4 6 . 4 1 3 3 . . . 3 . . . . . . . Indirectly 1 | . . . . . . . . . . 1 . . . . . . . . . . . . . . . . . Trap Hack Attempts . | . . . . . . . . . . . . . . . . . . . . . . . . . . . . Triggered . | . . . . . . . . . . . . . . . . . . . . . . . . . . . . Disarmed . | . . . . . . . . . . . . . . . . . . . . . . . . . . . . Reprogrammed . | . . . . . . . . . . . . . . . . . . . . . . . . . . . . Reused 1 | . . . . . . . . . . . . . . . . . . . . . . 1 . . . . . Traps Extracted . | . . . . . . . . . . . . . . . . . . . . . . . . . . . . Installed 2 | . . . . . . 1 . . . . . . . . . . . . . . . 1 . . . . . Triggered 7 | . . . . . . . 1 . . . . . . . 1 . . . . . 4 1 . . . . . Most Traps Carried 1 | . . 1 1 1 1 1 . . . . . . . . . . . . . . 1 1 . . . . . Machines | -11 -10 -10 -8 -8 -8 -8 -7 -7 -7 -7 -6 -6 -6 -6 -5 -5 -5 -5 -5 -4 -4 -4 -4 -3 -3 -2 -1 ---------- Run | Yrd Mat Sub Mat Gar Mat Gar Fac Gar Fac Gar Fac Was Fac Gar Fac Ext Cet Arc Hub Fac Upp Upp Zhi Pro Res Res Acc Machines Disabled 82 | . . 1 6 4 1 5 3 4 4 5 1 . . 1 14 6 1 2 1 21 1 . . . . 1 . Max in Single Turn 19 | . . 1 3 1 1 1 1 1 1 1 1 . . 1 3 2 1 . 1 19 1 . . . . 1 . Garrison Access 8 | . . . . . . . . . 1 . 2 . . . 3 . . . 1 . . . . . . . 1 Garrison Relay 16 | . . . . 4 . 5 . 3 . 3 . . . 1 . . . . . . . . . . . . . Phase Generator 3 | . . . . 1 . 1 . . . 1 . . . . . . . . . . . . . . . . . Network Hub 1 | . . . . . . . . . . . . . . . . . . . 1 . . . . . . . . Energy Cycler 2 | . . . . . . . . . . . . . . . . 2 . . . . . . . . . . . Machines Repaired . | . . . . . . . . . . . . . . . . . . . . . . . . . . . . Machines Dismantled 4 | . . . . 1 . 1 . . . 1 . . . . . . . . 1 . . . . . . . . Machines Sabotaged . | . . . . . . . . . . . . . . . . . . . . . . . . . . . . Overloaded Fab Kills . | . . . . . . . . . . . . . . . . . . . . . . . . . . . . Hacking | -11 -10 -10 -8 -8 -8 -8 -7 -7 -7 -7 -6 -6 -6 -6 -5 -5 -5 -5 -5 -4 -4 -4 -4 -3 -3 -2 -1 --------- Run | Yrd Mat Sub Mat Gar Mat Gar Fac Gar Fac Gar Fac Was Fac Gar Fac Ext Cet Arc Hub Fac Upp Upp Zhi Pro Res Res Acc Machines Accessed 184 | . 8 2 12 3 11 2 13 2 9 1 26 . 22 1 25 12 3 1 3 . 1 . 5 . 12 5 5 Terminals 114 | . 8 . 10 3 8 2 9 2 3 1 14 . 12 1 15 12 3 . 2 . . . . . 1 5 3 Fabricators 21 | . . . . . . . 3 . 1 . 6 . 4 . 3 . . . . . . . . . 4 . . Repair Stations 19 | . . . 1 . 2 . . . 2 . 3 . 4 . 4 . . . . . . . . . 3 . . Recycling Units 2 | . . . . . . . . . . . . . . . . . . . . . . . . . 1 . 1 Scanalyzers 4 | . . . . . . . . . 1 . 1 . 1 . . . . . . . . . . . 1 . . Garrison Access 15 | . . . 1 . 1 . 1 . 2 . 2 . 1 . 3 . . . 1 . . . . . 2 . 1 Total Hacks 605 | . 31 11 44 8 25 6 36 3 24 2 67 . 75 1 89 23 9 25 13 . 1 . 15 . 71 12 14 Successful 379 | . 21 11 25 3 14 1 17 2 18 1 45 . 46 1 46 12 6 25 9 . 1 . 15 . 47 3 10 Failed 226 | . 10 . 19 5 11 5 19 1 6 1 22 . 29 . 43 11 3 . 4 . . . . . 24 9 4 Catastrophic 32 | . . . 1 1 4 1 7 . 1 . 5 . 2 . 5 . . . 1 . . . . . . 4 . Database Lockouts . | . . . . . . . . . . . . . . . . . . . . . . . . . . . . Manual 201 | . 17 . 26 2 11 2 16 1 . . 23 . 30 . 45 4 1 . 6 . . . . . 2 11 4 Terminals 357 | . 31 . 42 8 17 6 20 3 5 2 38 . 48 1 68 23 9 . 11 . . . . . 4 12 9 Fabricators 70 | . . . . . . . 15 . 5 . 13 . 9 . 10 . . . . . . . . . 18 . . Repair Stations 56 | . . . 1 . 7 . . . 10 . 9 . 14 . 8 . . . . . . . . . 7 . . Recycling Units 4 | . . . . . . . . . . . . . . . . . . . . . . . . . 1 . 3 Scanalyzers 47 | . . . . . . . . . 2 . 5 . 3 . . . . . . . . . . . 37 . . Garrison Access 19 | . . . 1 . 1 . 1 . 2 . 2 . 1 . 3 . . . 2 . . . . . 4 . 2 Terminal Hacks 217 | . 21 11 23 3 7 1 7 2 1 1 16 . 20 1 30 12 6 25 6 . 1 . 15 . 3 1 4 Record 46 | . . 10 1 . . . . . . . 1 . . . . . 5 25 . . . . 3 . 1 . . Part Schematic 22 | . . . 3 . . . . . . . 2 . 10 . 2 . . . . . . . 4 . 1 . . Robot Analysis 6 | . 1 . . . . . . . . . 1 . . . . . . . . . . . 4 . . . . Prototype ID Bank 44 | . 15 . 8 . 3 . 1 . . . 3 . . . 8 1 . . . . . . 4 . . . 1 Open Door 14 | . . . . . . 1 . . . . . . . 1 1 8 1 . . . 1 . . . . . 1 Level Access Points 1 | . . . . . . . . . . . . . . . . . . . 1 . . . . . . . . Branch Access Points 2 | . . . . . . . . . . . 1 . . . 1 . . . . . . . . . . . . Emergency Access Points 2 | . . . 1 . . . . . . 1 . . . . . . . . . . . . . . . . . Terminal Index 7 | . . . 1 . . . 1 . . . 1 . 1 . 1 . . . 1 . . . . . . . 1 Fabricator Index 3 | . . . . . . . . . . . 1 . 1 . 1 . . . . . . . . . . . . Repair Station Index 1 | . . . . . . . . . . . . . . . 1 . . . . . . . . . . . . Recycling Unit Index 1 | . . . . . . . . . . . . . . . 1 . . . . . . . . . . . . Scanalyzer Index 1 | . . . . . . . . . . . 1 . . . . . . . . . . . . . . . . Garrison Index 3 | . . . 1 . . . . . 1 . . . . . 1 . . . . . . . . . . . . Alert Level 4 | . . . 1 . . . . . . . . . 1 . 2 . . . . . . . . . . . . Unreport Threat 2 | . . . 1 . . . . . . . . . . . . . . . . . . . . . . 1 . Locate Traps 18 | . 1 . 2 . 2 . 4 . . . 2 . 3 . 3 . . . . . . . . . 1 . . Dispatch Records 5 | . 1 . 1 . . . . . . . . . 1 . 2 . . . . . . . . . . . . Security Status 1 | . . . . . . . . . . . . . . . . . . . 1 . . . . . . . . Patrol Status 2 | . 1 . . . . . . . . . . . . . 1 . . . . . . . . . . . . Recall Extermination 2 | . . . . . . . . . . . 1 . . . 1 . . . . . . . . . . . . Recall Reinforcements 2 | . . . . . . . . . . . 1 . . . 1 . . . . . . . . . . . . Hauler Manifests 7 | . 1 . 2 . 1 . 1 . . . 1 . . . . . . . 1 . . . . . . . . Registered Components 4 | . . . 1 . . . . . . . . . 1 . 1 . . . 1 . . . . . . . . Registered Prototypes 2 | . . . . . 1 . . . . . . . 1 . . . . . . . . . . . . . . Zone Layout 9 | . 1 . . . . . . . . . . . 1 . 2 3 . . 1 . . . . . . . 1 Garrison Registry 2 | . . . . 1 . . . 1 . . . . . . . . . . . . . . . . . . . Patrol Navigation 1 | . . . . 1 . . . . . . . . . . . . . . . . . . . . . . . Security Stations 2 | . . . . 1 . . . 1 . . . . . . . . . . . . . . . . . . . Derelict Proto ID Bank 1 | . . 1 . . . . . . . . . . . . . . . . . . . . . . . . . Fabricator Hacks 50 | . . . . . . . 8 . 3 . 9 . 8 . 6 . . . . . . . . . 16 . . Network Status 7 | . . . . . . . 2 . 1 . . . 1 . . . . . . . . . . . 3 . . Load Schematic 22 | . . . . . . . 3 . 1 . 5 . 3 . 3 . . . . . . . . . 7 . . Build 21 | . . . . . . . 3 . 1 . 4 . 4 . 3 . . . . . . . . . 6 . . Repair Station Hacks 41 | . . . . . 6 . . . 10 . 9 . 10 . 3 . . . . . . . . . 3 . . Scan Component 24 | . . . . . 3 . . . 6 . 6 . 5 . 2 . . . . . . . . . 2 . . Repair 17 | . . . . . 3 . . . 4 . 3 . 5 . 1 . . . . . . . . . 1 . . Recycling Unit Hacks 2 | . . . . . . . . . . . . . . . . . . . . . . . . . 1 . 1 Report Inventory 1 | . . . . . . . . . . . . . . . . . . . . . . . . . 1 . . Retrieve Matter 1 | . . . . . . . . . . . . . . . . . . . . . . . . . . . 1 Scanalyzer 29 | . . . . . . . . . 2 . 5 . 2 . . . . . . . . . . . 20 . . Insert Component 13 | . . . . . . . . . 1 . 2 . 1 . . . . . . . . . . . 9 . . Analyze 16 | . . . . . . . . . 1 . 3 . 1 . . . . . . . . . . . 11 . . Garrison Access Hacks 17 | . . . 1 . 1 . 1 . 2 . 2 . 1 . 3 . . . 2 . . . . . 2 . 2 Unlock Access 5 | . . . 1 . 1 . 1 . 1 . . . 1 . . . . . . . . . . . . . . Seal Access 8 | . . . . . . . . . 1 . 2 . . . 3 . . . 1 . . . . . . . 1 Coupler Status 4 | . . . . . . . . . . . . . . . . . . . 1 . . . . . 2 . 1 Unauthorized Hacks 23 | . . . 1 . . . 1 . . . 4 . 5 . 4 . . . 1 . . . . . 2 2 3 Terminals 18 | . . . 1 . . . . . . . 4 . 5 . 3 . . . 1 . . . . . . 2 2 Assimilate 7 | . . . . . . . . . . . 2 . 2 . 2 . . . . . . . . . . 1 . Botnet 5 | . . . . . . . . . . . . . 2 . 1 . . . 1 . . . . . . . 1 Detonate 1 | . . . . . . . . . . . . . . . . . . . . . . . . . . 1 . Operators 5 | . . . 1 . . . . . . . 2 . 1 . . . . . . . . . . . . . 1 Fabricators 2 | . . . . . . . 1 . . . . . . . 1 . . . . . . . . . . . . Fabnet 2 | . . . . . . . 1 . . . . . . . 1 . . . . . . . . . . . . Repair Stations . | . . . . . . . . . . . . . . . . . . . . . . . . . . . . Recycling Units 1 | . . . . . . . . . . . . . . . . . . . . . . . . . . . 1 Recyclers 1 | . . . . . . . . . . . . . . . . . . . . . . . . . . . 1 Scanalyzers . | . . . . . . . . . . . . . . . . . . . . . . . . . . . . Garrison Access 2 | . . . . . . . . . . . . . . . . . . . . . . . . . 2 . . Eject 2 | . . . . . . . . . . . . . . . . . . . . . . . . . 2 . . Data Cores Recovered 6 | . . . . . . . 2 . . . 1 . . . 1 1 . . . . . . . . . . 1 Used 2 | . . . . . . . . . . . . . . . 1 . . . . . . . . . . . 1 Hacking Detections 142 | . 8 . 12 3 9 2 12 2 6 1 21 . 18 1 20 7 2 . 2 . . . . . 7 4 5 Full Trace Events 5 | . . . 1 . 1 . . . . . 2 . . . . 1 . . . . . . . . . . . Feedback Events . | . . . . . . . . . . . . . . . . . . . . . . . . . . . . Feedback Blocked . | . . . . . . . . . . . . . . . . . . . . . . . . . . . . Robot Schematics Acquired . | . . . . . . . . . . . . . . . . . . . . . . . . . . . . Robots Built 1 | . . . . . . . . . . . . . 1 . . . . . . . . . . . . . . Authchips . | . . . . . . . . . . . . . . . . . . . . . . . . . . . . Time 58 | . . . . . . . . . . . . . 58 . . . . . . . . . . . . . . Total Robot Build Rating 3 | . . . . . . . . . . . . . 3 . . . . . . . . . . . . . . Part Schematics Acquired 31 | . . . 2 . . . . . 1 . 2 . 10 . 2 . . . . . . . 4 . 10 . . Parts Built 35 | . . . . . . . 6 . 2 . 7 . 5 . 5 . . . . . . . . . 10 . . Authchips . | . . . . . . . . . . . . . . . . . . . . . . . . . . . . Time 1635 | . . . . . . . 145 . 58 . 372 . 192 . 310 . . . . . . . . . 558 . . Total Part Build Rating 215 | . . . . . . . 18 . 14 . 46 . 33 . 33 . . . . . . . . . 71 . . Parts Repaired 17 | . . . . . 3 . . . 4 . 3 . 5 . 1 . . . . . . . . . 1 . . Time 701 | . . . . . 114 . . . 158 . 162 . 161 . 38 . . . . . . . . . 68 . . Parts Recycled . | . . . . . . . . . . . . . . . . . . . . . . . . . . . . Recycled Matter . | . . . . . . . . . . . . . . . . . . . . . . . . . . . . Retrieved Matter . | . . . . . . . . . . . . . . . . . . . . . . . . . . . . Retrieved Components . | . . . . . . . . . . . . . . . . . . . . . . . . . . . . Parts Scanalyzed 13 | . . . . . . . . . 1 . 2 . 1 . . . . . . . . . . . 9 . . Part Schematics Acquired 11 | . . . . . . . . . 1 . 1 . . . . . . . . . . . . . 9 . . Parts Damaged . | . . . . . . . . . . . . . . . . . . . . . . . . . . . . Bothacking | -11 -10 -10 -8 -8 -8 -8 -7 -7 -7 -7 -6 -6 -6 -6 -5 -5 -5 -5 -5 -4 -4 -4 -4 -3 -3 -2 -1 ------------ Run | Yrd Mat Sub Mat Gar Mat Gar Fac Gar Fac Gar Fac Was Fac Gar Fac Ext Cet Arc Hub Fac Upp Upp Zhi Pro Res Res Acc Used RIF Installer 4 | . . . . 1 . 1 . 1 . 1 . . . . . . . . . . . . . . . . . Command Fork 1 | . . . . . . 1 . . . . . . . . . . . . . . . . . . . . . Robot Detection 1 | . . . . . . . . . . 1 . . . . . . . . . . . . . . . . . Program Shield 1 | . . . . . . . . 1 . . . . . . . . . . . . . . . . . . . Robots Hacked 32 | . . . . . . . . . 1 4 3 . 2 5 5 4 . 2 2 4 . . . . . . . Non-combat 2 | . . . . . . . . . 1 . . . . . . . . . 1 . . . . . . . . Combat 30 | . . . . . . . . . . 4 3 . 2 5 5 4 . 2 1 4 . . . . . . . Robot Hacks Applied 26 | . . . . . . . . . 1 4 1 . . 6 3 4 . 2 2 3 . . . . . . . drop_inventory 1 | . . . . . . . . . . . . . . . . . . . 1 . . . . . . . . scatter_targeting 7 | . . . . . . . . . . . 1 . . 1 . 1 . 1 1 2 . . . . . . . overload_power 2 | . . . . . . . . . . . . . . 1 1 . . . . . . . . . . . . amplify_resonance 6 | . . . . . . . . . . 1 . . . 1 1 2 . . . 1 . . . . . . . disable_weapons 1 | . . . . . . . . . . . . . . 1 . . . . . . . . . . . . . overwrite_iff 7 | . . . . . . . . . . 3 . . . 1 1 1 . 1 . . . . . . . . . formatsys_low 1 | . . . . . . . . . 1 . . . . . . . . . . . . . . . . . . formatsys_high 1 | . . . . . . . . . . . . . . 1 . . . . . . . . . . . . . Relay Couplers Released 71 | . . . . 13 . 19 . 12 3 12 . . . 5 . . . . . . . . . . 7 . . Ejected 7 | . . . . . . . . . . . . . . . . . . . . . . . . . 7 . . Machine Destruction 61 | . . . . 13 . 19 . 12 . 12 . . . 5 . . . . . . . . . . . . . Programmers 3 | . . . . . . . . . 3 . . . . . . . . . . . . . . . . . . Attached 10 | . . . . . . . . . 1 2 3 . . 1 . . . . . . . . . . 3 . . Fabnet Peak Effective % 3 | . . . . . . . . . . . 3 3 3 3 1 1 1 1 1 3 3 3 3 1 1 . . Autooverrided 8 | . . . . . . . . . . . 2 . 2 . 2 1 . . . 1 . . . . . . . Robots Rewired 9 | . . . . . . 5 . . . . . . . . . . . . . . . 4 . . . . . Allies Hacked 1 | . . . . . . . . . . . . . . . . . . . . 1 . . . . . . . Hacks Repelled 1 | . . . . . . . . . . . . . 1 . . . . . . . . . . . . . . Allies | -11 -10 -10 -8 -8 -8 -8 -7 -7 -7 -7 -6 -6 -6 -6 -5 -5 -5 -5 -5 -4 -4 -4 -4 -3 -3 -2 -1 -------- Run | Yrd Mat Sub Mat Gar Mat Gar Fac Gar Fac Gar Fac Was Fac Gar Fac Ext Cet Arc Hub Fac Upp Upp Zhi Pro Res Res Acc Total Allies 53 | . . . . . . 5 . . 2 3 3 1 5 3 5 14 5 1 . 2 . 4 . . . . . Largest Group 10 | . . . . . . 3 1 . 2 1 1 1 3 2 2 7 10 8 6 1 . 4 4 4 . . . Highest-Rated Group 743 | . . . . . . 59 39 . 25 16 30 31 93 61 51 320 743 724 507 54 . 167 167 167 . . . Highest-Rated Ally 159 | . . . . . . 39 39 . 15 16 30 31 41 41 41 159 159 153 96 54 . 46 46 46 . . . Total Orders 6 | . . . . . . . . . 1 . . . . . . . 5 . . . . . . . . . . STAY 3 | . . . . . . . . . . . . . . . . . 3 . . . . . . . . . . FOLLOW 2 | . . . . . . . . . . . . . . . . . 2 . . . . . . . . . . AID 1 | . . . . . . . . . 1 . . . . . . . . . . . . . . . . . . Ally Attacks 276 | . . . . . . 17 6 . . 8 2 16 2 6 6 92 52 32 29 2 . . . 6 . . . Total Damage 7162 | . . . . . . 215 60 . . 111 68 184 72 226 406 1789 1310 1375 1215 14 . . . 117 . . . Kills 39 | . . . . . . . 1 . . 2 1 . . 1 2 15 9 4 4 . . . . . . . . Allies Corrupted 1 | . . . . . . . . . . . . . . . . . . . 1 . . . . . . . . Allies Melted . | . . . . . . . . . . . . . . . . . . . . . . . . . . . . Intel | -11 -10 -10 -8 -8 -8 -8 -7 -7 -7 -7 -6 -6 -6 -6 -5 -5 -5 -5 -5 -4 -4 -4 -4 -3 -3 -2 -1 ------- Run | Yrd Mat Sub Mat Gar Mat Gar Fac Gar Fac Gar Fac Was Fac Gar Fac Ext Cet Arc Hub Fac Upp Upp Zhi Pro Res Res Acc Robot Analysis Total 6 | . 1 . . . . . . . . . 1 . . . . . . . . . . . 4 . . . . Derelict Logs Recovered 4 | . . 1 . . . . . . . . . . . . . . . . . . 1 2 . . . . . Drone Launches . | . . . . . . . . . . . . . . . . . . . . . . . . . . . . Drone Recoveries . | . . . . . . . . . . . . . . . . . . . . . . . . . . . . Exploration | -11 -10 -10 -8 -8 -8 -8 -7 -7 -7 -7 -6 -6 -6 -6 -5 -5 -5 -5 -5 -4 -4 -4 -4 -3 -3 -2 -1 ------------- Run | Yrd Mat Sub Mat Gar Mat Gar Fac Gar Fac Gar Fac Was Fac Gar Fac Ext Cet Arc Hub Fac Upp Upp Zhi Pro Res Res Acc Turns Passed 34967 | 75 1256 2174 2325 813 1799 1868 3302 1438 2101 1540 3236 62 2153 145 2644 858 415 356 273 858 556 406 229 463 2034 1179 409 Spaces Moved 33418 | 36 696 1277 1214 423 931 1073 1804 536 801 862 4357 146 3440 220 3528 1109 429 265 388 1300 1089 690 298 679 3562 1579 686 Core 6 | . 1 . . . . . . . . . . . . . 5 . . . . . . . . . . . . Treads 8616 | 19 695 1277 1214 423 931 1073 1804 536 644 . . . . . . . . . . . . . . . . . . Legs 17 | 17 . . . . . . . . . . . . . . . . . . . . . . . . . . . Wheels 1019 | . . . . . . . . . 157 862 . . . . . . . . . . . . . . . . . Hover 23760 | . . . . . . . . . . . 4357 146 3440 220 3523 1109 429 265 388 1300 1089 690 298 679 3562 1579 686 Flight . | . . . . . . . . . . . . . . . . . . . . . . . . . . . . Fastest Speed 24 | 120 160 160 155 155 150 155 145 225 145 145 38 38 24 24 28 36 36 36 36 33 43 43 40 43 28 29 34 Average Speed 76 | 141 160 160 157 155 154 155 158 225 213 149 48 38 33 28 39 39 51 39 40 37 43 43 43 43 36 39 37 Slowest Speed 450 | 160 450 160 160 155 155 155 237 225 232 160 102 38 108 40 200 100 100 100 103 103 43 43 93 43 45 131 40 Overloaded Moves 326 | . . . . . . . . . . . . . . . . . . . . . . . . . 134 192 . Propulsion Burnouts . | . . . . . . . . . . . . . . . . . . . . . . . . . . . . Robots Hopped . | . . . . . . . . . . . . . . . . . . . . . . . . . . . . Cave-ins Triggered 1 | . . . . . . . . . . . . . . . . . . . . . . . . . . 1 . Exploration Rate (%) 66 | 3 92 68 99 53 86 89 53 55 28 83 83 78 71 34 81 86 89 94 24 34 96 86 63 82 78 54 15 Regions Visited 27 Branch Regions 9 Pre-discovered Areas 1 | . . . . . . . . . . . . . . . . . . . . . 1 . . . . . . Known Exits Taken 20 | 1 1 1 1 . 1 . 1 . 1 . . . 1 . 1 1 1 1 1 1 1 1 1 1 1 1 . Unknown Exits Taken . | . . . . . . . . . . . . . . . . . . . . . . . . . . . . Scrap Searched 10 | . . 1 . . . . . . . . . . . . . . . . . . 3 4 . 2 . . . Spaces Dug 383 | . . . 6 1 2 4 26 17 11 13 52 . 51 . 78 3 . . 7 32 2 1 . . 27 43 7 Terrain Destroyed 705 | . . 13 64 2 19 5 50 22 14 24 56 . 51 . 113 21 13 . 8 112 2 1 . . 33 75 7 Melee 349 | . . . 5 1 2 4 23 16 11 13 50 . 48 . 70 2 . . 5 31 2 1 . . 25 33 7 Projectile 170 | . . 2 14 . 17 1 14 1 3 11 6 . 3 . 24 19 . . 3 16 . . . . 8 28 . AOE 186 | . . 11 45 1 . . 13 5 . . . . . . 19 . 13 . . 65 . . . . . 14 . Terrain Rammed . | . . . . . . . . . . . . . . . . . . . . . . . . . . . . Walls Destroyed . | . . . . . . . . . . . . . . . . . . . . . . . . . . . . Machines Disabled . | . . . . . . . . . . . . . . . . . . . . . . . . . . . . Actions | -11 -10 -10 -8 -8 -8 -8 -7 -7 -7 -7 -6 -6 -6 -6 -5 -5 -5 -5 -5 -4 -4 -4 -4 -3 -3 -2 -1 --------- Run | Yrd Mat Sub Mat Gar Mat Gar Fac Gar Fac Gar Fac Was Fac Gar Fac Ext Cet Arc Hub Fac Upp Upp Zhi Pro Res Res Acc Total 40985 | 50 791 1367 1494 505 1216 1180 2125 664 1116 1001 5309 151 4305 279 4573 1469 607 494 489 1558 1172 793 399 849 4232 1983 814 Wait 4939 | 4 16 47 106 23 222 27 156 . 221 2 678 6 693 25 717 266 140 205 77 113 60 57 72 167 502 266 71 Move 33388 | 35 695 1276 1214 421 931 1071 1804 534 800 860 4357 145 3440 218 3527 1108 428 264 387 1299 1088 689 297 678 3561 1576 685 Hop . | . . . . . . . . . . . . . . . . . . . . . . . . . . . . Pick Up 284 | 2 20 7 23 6 5 5 20 7 6 6 39 . 13 3 36 1 7 1 1 9 5 3 5 1 34 14 5 Fast Attach 137 | . 5 . 9 . 5 . 11 2 10 2 18 . 19 . 26 1 1 . . 4 3 1 6 . 3 4 7 Attach 66 | . 1 . 6 1 . . 2 3 1 1 9 . 2 2 10 . 1 . 2 8 . 1 1 . 7 6 2 Detach 33 | . 1 . 2 1 . . 2 . 3 . 5 . 2 1 4 . . . 1 2 . 1 2 . 1 2 3 Swap 355 | 2 7 10 21 7 4 3 24 13 20 15 28 . 19 3 44 13 11 7 6 21 5 4 5 2 36 16 9 Drop 383 | 2 16 8 35 5 11 6 27 8 9 4 56 . 26 4 55 3 8 1 1 9 8 4 11 1 40 11 14 Fire 548 | 5 30 19 63 27 32 31 33 38 16 26 14 . 4 7 45 42 6 5 6 39 . 2 . . 20 38 . Melee 683 | . . . 12 5 6 13 46 41 30 45 105 . 87 14 109 10 5 11 5 41 3 1 . . 28 48 18 Ram . | . . . . . . . . . . . . . . . . . . . . . . . . . . . . Kick . | . . . . . . . . . . . . . . . . . . . . . . . . . . . . Crush 3 | . . . 3 . . . . . . . . . . . . . . . . . . . . . . . . Escape Stasis 91 | . . . . . . . . 18 . 31 . . . 2 . 25 . . . 13 . . . . . 2 . Rewire 43 | . . . . . . 14 . . . . . . . . . . . . . . . 29 . . . . . Trap 2 | . . . . . . 1 . . . . . . . . . . . . . . . 1 . . . . . Miscellaneous 30 | . . . . 9 . 9 . . . 9 . . . . . . . . 3 . . . . . . . . Route ------- -11/Scrapyard -10/Materials (discovered 6 exits: *Mat x3 / *Min x2 / *Sub) -10/Subcaves (discovered 3 exits: *Mat x2 / *Rec) -8/Materials (discovered 4 exits: *Fac x3 / Gar) -8/Garrison (discovered 4 exits: *Mat x4) -8/Materials (discovered 4 exits: *Fac x3 / Gar) -8/Garrison (discovered 4 exits: *Fac x3 / *Mat) -7/Factory (discovered 2 exits: *Fac / Gar) -7/Garrison (discovered 3 exits: *Fac x3) -7/Factory (discovered 2 exits: *Low / Gar) -7/Garrison (discovered 3 exits: *Fac x3) -6/Factory (discovered 5 exits: *Fac x3 / *Low x2) -6/Waste -6/Factory (discovered 5 exits: *Fac x3 / *Low / Gar) -6/Garrison -5/Factory (discovered 7 exits: *Fac x3 / *Upp x2 / *Ext x2) -5/Extension (discovered 2 exits: *Fac / *Cet) -5/Cetus (discovered 2 exits: *Fac / *Arc) -5/Archives (discovered 3 exits: *Fac / *Hub x2) -5/Hub_04(d) (discovered 4 exits: *Fac x4) -4/Factory (discovered 2 exits: *Res / *Upp) -4/Upper Caves -4/Upper Caves (discovered 2 exits: *Res / *Zhi) -4/Zhirov -3/Proximity Caves -3/Research (discovered 2 exits: *Res / *Qua) -2/Research -1/Access To Epsilon Eridani History --------- Turn | Location | Event 1 | -11/Scrapyard | Identified exit to Materials 1 | -11/Scrapyard | Discovered exit to Materials (range 3) 76 | -11/Scrapyard | Entered Materials 76 | -10/Materials | Evolved 1 slot: Utility x1 233 | -10/Materials | Identified exit to Mines 233 | -10/Materials | Discovered exit to Mines (range 16) 303 | -10/Materials | Identified exit to Materials 303 | -10/Materials | Discovered exit to Materials (range 7) 306 | -10/Materials | Build established: Hacker-Mutant 863 | -10/Materials | Discovered exit to Materials (range 16) 988 | -10/Materials | Discovered exit to Materials (range 12) 1212 | -10/Materials | Discovered exit to Mines (range 8) 1308 | -10/Materials | Identified exit to Subcaves 1308 | -10/Materials | Discovered exit to Subcaves (range 8) 1332 | -10/Materials | Entered Subcaves 1361 | -10/Subcaves | A swath of the cavern ceiling suddenly collapsed 1525 | -10/Subcaves | Identified exit to Recycling 1525 | -10/Subcaves | Discovered exit to Recycling (range 15) 1733 | -10/Subcaves | Shifting Twisted Machinery released Battle Rifle 1738 | -10/Subcaves | Shifting Twisted Machinery released Sub. Beam Cannon 1858 | -10/Subcaves | Learned Materials emergency access door positions 1941 | -10/Subcaves | Visited Clippyterm 1965 | -10/Subcaves | Identified exit to Materials 1965 | -10/Subcaves | Discovered exit to Materials (range 7) 2918 | -10/Subcaves | Shifting Twisted Machinery released Sub. Beam Cannon 2919 | -10/Subcaves | Shifting Twisted Machinery released Sub. Laser 3202 | -10/Subcaves | Visited 4L-MR0's lab 3221 | -10/Subcaves | Found Rainbow Chip 3362 | -10/Subcaves | Discovered exit to Materials (range 10) 3506 | -10/Subcaves | Entered Materials 3506 | -8/Materials | Evolved 4 slots: Propulsion x1, Utility x2, Weapon x1 3589 | -8/Materials | Destroyed 7 combat bots 4490 | -8/Materials | Identified exit to Factory 4490 | -8/Materials | Discovered exit to Factory (range 9) 4574 | -8/Materials | Build established: Hacker-Gunner 5036 | -8/Materials | Attached Rainbow Chip, gained temporary slots: Power, Propulsion, Utility, Weapon 5089 | -8/Materials | Discovered exit to Factory (range 20) 5552 | -8/Materials | Discovered exit to Factory (range 6) 5590 | -8/Materials | Build established: Hacker-Tank 5831 | -8/Materials | Identified exit to Garrison 5831 | -8/Materials | Entered Garrison 5948 | -8/Garrison | Phase Generator disabled 5975 | -8/Garrison | Identified exit to Materials 5975 | -8/Garrison | Discovered exit to Materials (range 83) 5975 | -8/Garrison | Discovered exit to Materials (range 73) 5975 | -8/Garrison | Discovered exit to Materials (range 32) 5975 | -8/Garrison | Discovered exit to Materials (range 55) 6031 | -8/Garrison | Garrison Relay disabled 6098 | -8/Garrison | Garrison Relay disabled 6099 | -8/Garrison | Destroyed 8 combat bots 6151 | -8/Garrison | Learned Materials security intel 6179 | -8/Garrison | Garrison Relay disabled 6183 | -8/Garrison | Triggered checkpoint 6273 | -8/Garrison | Triggered checkpoint 6388 | -8/Garrison | Build established: Hacker-Mutant 6393 | -8/Garrison | Triggered checkpoint 6490 | -8/Garrison | Triggered checkpoint 6532 | -8/Garrison | Installed Relay Interface Framework 6573 | -8/Garrison | Garrison Relay disabled 6644 | -8/Garrison | Entered Materials 6892 | -8/Materials | Repaired Hrd. Medium Armor Plating 6932 | -8/Materials | Repaired Adv. Treads 7035 | -8/Materials | Discovered exit to Factory (range 17) 7427 | -8/Materials | Repaired Arm. Treads 7785 | -8/Materials | Discovered exit to Factory (range 10) 7978 | -8/Materials | Discovered exit to Factory (range 7) 8305 | -8/Materials | Garrison activated, responded to threat 8420 | -8/Materials | Build established: Bothacker-Mutant 8443 | -8/Materials | Identified exit to Garrison 8443 | -8/Materials | Entered Garrison 8545 | -8/Garrison | Expanded RIF knowledge: Command Fork 8591 | -8/Garrison | Triggered checkpoint 8628 | -8/Garrison | Garrison Relay disabled 8740 | -8/Garrison | Garrison Relay disabled 8817 | -8/Garrison | Triggered checkpoint 8877 | -8/Garrison | Discovered exit to Factory (range 19) 8950 | -8/Garrison | Phase Generator disabled 9239 | -8/Garrison | Triggered checkpoint 9337 | -8/Garrison | Discovered exit to Factory (range 4) 9465 | -8/Garrison | Triggered checkpoint 9532 | -8/Garrison | Identified exit to Materials 9532 | -8/Garrison | Discovered exit to Materials (range 5) 9615 | -8/Garrison | Triggered checkpoint 9635 | -8/Garrison | Garrison Relay disabled 9811 | -8/Garrison | Triggered checkpoint 9846 | -8/Garrison | Discovered exit to Factory (range 13) 9863 | -8/Garrison | Triggered checkpoint 9911 | -8/Garrison | Lost 3 allies 9983 | -8/Garrison | Garrison Relay disabled 10159 | -8/Garrison | Triggered checkpoint 10311 | -8/Garrison | Entered Factory 10311 | -7/Factory | Accompanied by 1 ally 10311 | -7/Factory | Evolved 2 slots: Utility x2 11026 | -7/Factory | Fabricated Arm. Treads (x2) 11075 | -7/Factory | Fabricated Adv. Treads (x2) 11127 | -7/Factory | Identified exit to Factory 11127 | -7/Factory | Discovered exit to Factory (range 6) 11781 | -7/Factory | Cargo convoy interrupted 11875 | -7/Factory | Found Prototype Processor 11876 | -7/Factory | Identified Exp. Melee Analysis Suite 11901 | -7/Factory | Found Exp. Melee Analysis Suite 12009 | -7/Factory | Found Exp. Melee Analysis Suite 12104 | -7/Factory | Fabricated Adv. Treads (x2) 12304 | -7/Factory | Build established: Bothacker-Gladiator 13613 | -7/Factory | Identified exit to Garrison 13613 | -7/Factory | Entered Garrison 13639 | -7/Garrison | Triggered checkpoint 13685 | -7/Garrison | Triggered checkpoint 13705 | -7/Garrison | Garrison Relay disabled 14044 | -7/Garrison | Expanded RIF knowledge: Program Shield 14144 | -7/Garrison | Triggered checkpoint 14160 | -7/Garrison | Triggered checkpoint 14213 | -7/Garrison | Destroyed 8 combat bots 14314 | -7/Garrison | Identified exit to Factory 14314 | -7/Garrison | Discovered exit to Factory (range 22) 14314 | -7/Garrison | Discovered exit to Factory (range 62) 14314 | -7/Garrison | Discovered exit to Factory (range 67) 14453 | -7/Garrison | Triggered checkpoint 14474 | -7/Garrison | Garrison Relay disabled 14507 | -7/Garrison | Learned Factory security intel 14680 | -7/Garrison | Build established: Bothacker-Mutant 14715 | -7/Garrison | Triggered checkpoint 14761 | -7/Garrison | Spotted B-75 Beast 14778 | -7/Garrison | Destroyed B-75 Beast 14955 | -7/Garrison | Garrison Relay disabled 15051 | -7/Garrison | Entered Factory 15146 | -7/Factory | Repaired Adv. Treads 15206 | -7/Factory | Repaired Mic. Nuclear Core 15245 | -7/Factory | Repaired Imp. Utility Shielding 15868 | -7/Factory | Fabricated Imp. Linear Gravjet (x2) 16000 | -7/Factory | Build established: Bothacker-Tank 16637 | -7/Factory | Repaired Adv. Treads 16801 | -7/Factory | P-70 Sage assimilated allied Engineer 4a 17047 | -7/Factory | Identified exit to Lower Caves 17047 | -7/Factory | Discovered exit to Lower Caves (range 6) 17071 | -7/Factory | Identified exit to Garrison 17118 | -7/Factory | Build established: Bothacker-Gladiator 17152 | -7/Factory | Entered Garrison 17152 | -7/Garrison | Accompanied by 1 ally 17410 | -7/Garrison | Core integrity fell below 50% 17509 | -7/Garrison | Garrison Relay disabled 17521 | -7/Garrison | Build established: Hacker-Gladiator 17574 | -7/Garrison | Phase Generator disabled 17820 | -7/Garrison | Triggered checkpoint 17944 | -7/Garrison | Discovered exit to Factory (range 15) 17986 | -7/Garrison | Triggered checkpoint 18015 | -7/Garrison | Expanded RIF knowledge: Robot Detection 18199 | -7/Garrison | Garrison Relay disabled 18252 | -7/Garrison | Garrison Relay disabled 18258 | -7/Garrison | Triggered checkpoint 18308 | -7/Garrison | Triggered checkpoint 18358 | -7/Garrison | Discovered exit to Factory (range 12) 18495 | -7/Garrison | Build established: Bothacker-Gladiator 18536 | -7/Garrison | Triggered checkpoint 18620 | -7/Garrison | Triggered checkpoint 18623 | -7/Garrison | Spotted B-75 Beast 18657 | -7/Garrison | Discovered exit to Factory (range 19) 18692 | -7/Garrison | Entered Factory 18692 | -6/Factory | Evolved 2 slots: Propulsion x2 18799 | -6/Factory | Spotted B-75 Beast 19421 | -6/Factory | Repaired Mic. Nuclear Core 19536 | -6/Factory | Repaired Gravity Flail 19615 | -6/Factory | Identified exit to Factory 19615 | -6/Factory | Discovered exit to Factory (range 13) 19899 | -6/Factory | Discovered exit to Factory (range 13) 19931 | -6/Factory | Identified exit to Lower Caves 20074 | -6/Factory | Fabricated Imp. Linear Gravjet (x2) 20701 | -6/Factory | Fabricated Power Sword (x2) 20961 | -6/Factory | Found Unknown Device 20961 | -6/Factory | Identified Launcher Loader 21105 | -6/Factory | Discovered exit to Factory (range 13) 21189 | -6/Factory | Fabricated Com. Mass Driver (x1) 21339 | -6/Factory | Repaired Imp. Utility Shielding 21735 | -6/Factory | Fabricated Imp. Linear Gravjet (x2) 21928 | -6/Factory | Sucked down chute 21928 | -6/Factory | Entered Waste 21929 | -6/Waste | Met a frightened Derelict 21935 | -6/Waste | Spotted C-40 Crusher 21969 | -6/Waste | Spotted C-40 Crusher 21970 | -6/Waste | Spotted C-40 Crusher 21977 | -6/Waste | Spotted C-40 Crusher 21978 | -6/Waste | Spotted C-40 Crusher 21985 | -6/Waste | Identified exit to Factory 21985 | -6/Waste | Discovered exit to Factory (range 13) 21985 | -6/Waste | Spotted C-40 Crusher 21990 | -6/Waste | Entered Factory 22137 | -6/Factory | Repaired Imp. Linear Gravjet 22315 | -6/Factory | Discovered exit to Factory (range 16) 22488 | -6/Factory | Repaired Imp. Linear Gravjet 22605 | -6/Factory | Fabricated O-24 Administrator (x1) 22619 | -6/Factory | Discovered exit to Lower Caves (range 15) 23008 | -6/Factory | Repaired Imp. Gravmag System 23020 | -6/Factory | Fabricated Imp. Linear Gravjet (x2) 23080 | -6/Factory | Repaired Gravity Flail? 23084 | -6/Factory | Fabricated Imp. Linear Gravjet (x2) 23364 | -6/Factory | Discovered exit to Factory (range 9) 23369 | -6/Factory | Spotted B-75 Beast 23415 | -6/Factory | Fabricated F-cell Engine (x1) 23589 | -6/Factory | Repaired Lrn. Missile Launcher 23631 | -6/Factory | Build established: Hacker-Sprinter 23700 | -6/Factory | Local machine network offline 23700 | -6/Factory | Cargo convoy interrupted 23847 | -6/Factory | Discovered exit to Factory (range 12) 24143 | -6/Factory | Identified exit to Garrison 24143 | -6/Factory | Entered Garrison 24166 | -6/Garrison | Rescued a captive Derelict 24186 | -6/Garrison | Garrison Relay disabled 24189 | -6/Garrison | Triggered checkpoint 24225 | -6/Garrison | Triggered checkpoint 24261 | -6/Garrison | Spotted B-75 Beast 24263 | -6/Garrison | Triggered checkpoint 24281 | -6/Garrison | Discovered exit to Factory (range 8) 24288 | -6/Garrison | Entered Factory 24288 | -5/Factory | Evolved 2 slots: Power x1, Utility x1 24298 | -5/Factory | Lost 4 parts (4n) 24648 | -5/Factory | Identified exit to Upper Caves 24648 | -5/Factory | Identified exit to Extension 24852 | -5/Factory | Build established: Bothacker-Mutant 25104 | -5/Factory | Repaired Imp. Utility Shielding 25149 | -5/Factory | Identified exit to Factory 25149 | -5/Factory | Discovered exit to Factory (range 9) 25149 | -5/Factory | Spotted B-75 Beast 25356 | -5/Factory | Found Prototype Launcher 25684 | -5/Factory | Fabricated Imp. Linear Gravjet (x2) 25808 | -5/Factory | Fabricated Imp. Linear Gravjet (x2) 26029 | -5/Factory | Discovered exit to Factory (range 9) 26690 | -5/Factory | Fabricated F-cell Engine (x1) 26848 | -5/Factory | Discovered exit to Factory (range 14) 26932 | -5/Factory | Entered Extension 27143 | -5/Extension | Rescued a captive Derelict 27143 | -5/Extension | Rescued a captive Derelict 27168 | -5/Extension | Rescued a captive Derelict 27168 | -5/Extension | Rescued a captive Derelict 27236 | -5/Extension | Spotted B-75 Beast 27513 | -5/Extension | Spotted B-75 Beast 27562 | -5/Extension | Rescued a captive Derelict 27566 | -5/Extension | Rescued a captive Derelict 27578 | -5/Extension | Rescued a captive Derelict 27578 | -5/Extension | Rescued a captive Derelict 27583 | -5/Extension | Rescued A7 27605 | -5/Extension | Rescued a captive Derelict 27643 | -5/Extension | Rescued a captive Derelict 27644 | -5/Extension | Rescued a captive Derelict 27704 | -5/Extension | Rescued a captive Derelict 27717 | -5/Extension | Energy Cycler disabled 27745 | -5/Extension | Discovered exit to Factory (range 10) 27745 | -5/Extension | Identified exit to Cetus 27745 | -5/Extension | Discovered exit to Cetus (range 6) 27790 | -5/Extension | Entered Cetus 27790 | -5/Cetus | Accompanied by 6 allies (A7) 27795 | -5/Cetus | Acquired a Cetus Manufacturing Module code from A7 27796 | -5/Cetus | Spotted Cetus Guard 27798 | -5/Cetus | Spotted Cetus Guard 27802 | -5/Cetus | Spotted Cetus Guard 27811 | -5/Cetus | Spotted Cetus Guard 27815 | -5/Cetus | Allies destroyed Cetus Guard 27824 | -5/Cetus | Allies destroyed Cetus Guard 27827 | -5/Cetus | Destroyed Cetus Guard 27827 | -5/Cetus | Allies destroyed Cetus Guard 27854 | -5/Cetus | Started Cetus Manufacturing Module 27859 | -5/Cetus | Escorted A7 to Cetus Mainframe 27879 | -5/Cetus | Manufactured an Enhanced Grunt 27904 | -5/Cetus | Manufactured an Enhanced Grunt 27929 | -5/Cetus | Manufactured an Enhanced Grunt 27954 | -5/Cetus | Manufactured an Enhanced Grunt 27979 | -5/Cetus | Manufactured an Enhanced Grunt 27997 | -5/Cetus | Found a strange terminal 28008 | -5/Cetus | Identified exit to Archives 28008 | -5/Cetus | Discovered exit to Archives (range 16) 28075 | -5/Cetus | Spotted Cetus Guard 28075 | -5/Cetus | Spotted Cetus Guard 28077 | -5/Cetus | Spotted Cetus Guard 28080 | -5/Cetus | Destroyed Cetus Guard 28095 | -5/Cetus | Spotted Cetus Guard 28097 | -5/Cetus | Allies destroyed Cetus Guard 28100 | -5/Cetus | Destroyed Cetus Guard 28102 | -5/Cetus | Discovered exit to Factory (range 15) 28106 | -5/Cetus | Met Revision 17 28132 | -5/Cetus | Lost 3 allies 28177 | -5/Cetus | Build established: Hacker-Mutant 28205 | -5/Cetus | Entered Archives 28205 | -5/Archives | Accompanied by 7 allies (A7) 28210 | -5/Archives | Received a hacking code to weaken MAIN.C 28232 | -5/Archives | Unable to access archive contents 28239 | -5/Archives | Unable to access archive contents 28241 | -5/Archives | Identified exit to Hub_04(d) 28241 | -5/Archives | Discovered exit to Hub_04(d) (range 16) 28243 | -5/Archives | Unable to access archive contents 28244 | -5/Archives | Discovered exit to Hub_04(d) (range 13) 28257 | -5/Archives | Discovered exit to Factory (range 15) 28561 | -5/Archives | Entered Hub_04(d) 28561 | -5/Hub_04(d) | Accompanied by 6 allies 28702 | -5/Hub_04(d) | Discovered exit to Factory (range 15) 28796 | -5/Hub_04(d) | Network Hub disabled 28809 | -5/Hub_04(d) | Spotted Lightning 28810 | -5/Hub_04(d) | Spotted Lightning 28813 | -5/Hub_04(d) | Spotted Lightning 28814 | -5/Hub_04(d) | Spotted Lightning 28834 | -5/Hub_04(d) | Entered Factory 28834 | -4/Factory | Evolved 2 slots: Propulsion x1, Utility x1 28848 | -4/Factory | Local machine network offline 28852 | -4/Factory | Lost 5 allies 29051 | -4/Factory | Build established: Bothacker-Mutant 29301 | -4/Factory | Identified exit to Research 29301 | -4/Factory | Discovered exit to Research (range 12) 29597 | -4/Factory | Spotted B-86 Titan 29664 | -4/Factory | Identified exit to Upper Caves 29664 | -4/Factory | Discovered exit to Upper Caves (range 8) 29692 | -4/Factory | Entered Upper Caves 29759 | -4/Upper Caves | Encountered a Warlord checkpoint 29802 | -4/Upper Caves | Learned location of Testing (-2) 30001 | -4/Upper Caves | Attacked by a delusional Derelict stockpiling parts 30216 | -4/Upper Caves | Identified exit to Upper Caves 30216 | -4/Upper Caves | Discovered exit to Upper Caves (range 20) 30248 | -4/Upper Caves | Entered another Upper Caves area 30269 | -4/Upper Caves | Discovered exit to Research (range 14) 30434 | -4/Upper Caves | Learned 8 Research zone layouts 30451 | -4/Upper Caves | Learned 8 Research zone layouts 30498 | -4/Upper Caves | Identified exit to Zhirov 30498 | -4/Upper Caves | Discovered exit to Zhirov (range 11) 30528 | -4/Upper Caves | Attacked by a delusional Derelict stockpiling Unaware 30654 | -4/Upper Caves | Entered Zhirov 30654 | -4/Zhirov | Accompanied by 4 allies 30654 | -4/Zhirov | Identified exit to Proximity Caves 30654 | -4/Zhirov | Discovered exit to Proximity Caves (range 3) 30662 | -4/Zhirov | Met Zhirov 30678 | -4/Zhirov | Zhirov requested help retrieving the SGEMP Prototype 30686 | -4/Zhirov | Found Alien Artifact 30686 | -4/Zhirov | Identified Integrated Dissipator 30686 | -4/Zhirov | Installed Integrated Dissipator, increased core heat dissipation (+20) 30731 | -4/Zhirov | Found Alien Artifact 30763 | -4/Zhirov | Build established: Hacker-Mutant 30883 | -4/Zhirov | Entered Proximity Caves 30883 | -3/Proximity Caves | Accompanied by 4 allies 31309 | -3/Proximity Caves | Discovered exit to Research (range 10) 31346 | -3/Proximity Caves | Entered Research 31346 | -3/Research | Evolved 2 slots: Propulsion x1, Utility x1 31347 | -3/Research | Identified exit to Research 31396 | -3/Research | Build established: Hacker-Scout 31513 | -3/Research | Found Prototype Launcher 31525 | -3/Research | Identified Hellfire Missile Launcher 31546 | -3/Research | Revision forces began assault on 0b10 31562 | -3/Research | Fabricated Imp. Linear Gravjet (x2) 31682 | -3/Research | Found Prototype Slashing Weapon 31704 | -3/Research | Met up with Revision 17++ 31817 | -3/Research | Fabricated Cmb. Linear Gravjet (x2) 31878 | -3/Research | Build established: Hacker-Sprinter 31892 | -3/Research | Fabricated Cmb. Linear Gravjet (x2) 32005 | -3/Research | Fabricated Com. Mass Driver (x1) 32046 | -3/Research | Research terminal network offline 32115 | -3/Research | Spotted B-86 Titan 32262 | -3/Research | Identified exit to Quarantine 32262 | -3/Research | Discovered exit to Quarantine (range 22) 32283 | -3/Research | Found Prototype Processor 32292 | -3/Research | Identified Exp. Target Analyzer 32426 | -3/Research | Fabricated Exp. Optical Array (x1) 32448 | -3/Research | Build established: Hacker-Mutant 32500 | -3/Research | Identified Nanosword 32504 | -3/Research | Fabricated Imp. Utility Shielding? 32523 | -3/Research | Found Prototype Device 32587 | -3/Research | Identified Exp. Thermal Defense Suite 32646 | -3/Research | Spotted Striker 32887 | -3/Research | Repaired Broken Graviton Reactor 32974 | -3/Research | Spotted B-90 Cyclops 33097 | -3/Research | Spotted Executioner 33113 | -3/Research | Spotted Striker 33303 | -3/Research | Spotted Executioner 33306 | -3/Research | Spotted Striker 33323 | -3/Research | Destroyed Striker 33379 | -3/Research | Spotted Striker 33380 | -3/Research | Entered another Research area 33380 | -2/Research | Evolved 2 slots: Utility x2 33406 | -2/Research | Lost 3 allies 33644 | -2/Research | Spotted B-90 Cyclops 33649 | -2/Research | Spotted B-90 Cyclops 34067 | -2/Research | Crushed by falling debris 34301 | -2/Research | System corruption reached 10% 34399 | -2/Research | Build established: Bothacker-Mutant 34423 | -2/Research | Search patrols dispatched 34511 | -2/Research | Garrison activated, responded to threat 34555 | -2/Research | Identified exit to Access 34555 | -2/Research | Discovered exit to Access (range 3) 34559 | -2/Research | Entered Access 34559 | -1/Access | Evolved 2 slots: Propulsion x1, Utility x1 34809 | -1/Access | Search patrols dispatched 34966 | -1/Access | Identified exit to Surface 34966 | -1/Access | Discovered exit to Surface (range 5) 34968 | *** | Escaped! Last Messages --------------- Awaiting botnet instructions. 34875_ Connecting with Terminal... >>Prototypes Downloading prototype IDs... Singularity Reactor Cld. Linear Gravjet Imp. Q-thruster 34885_ Discarded Relay Coupler [Sentry]. 34885_ Acquired Reaction Control System. 34888_ Dropped Graviton Reactor. 34899_ Dropped Enh. Fission Core. 34899_ Acquired Enh. Nova Cannon. 34909_ Sneak attack on R-10 Processor. 34909_ R-10 Processor destroyed. 34912_ Acquired 104 matter. 34965_ Connecting with Terminal... >>Open(Door) Sealed Barrier opened. 34966_ The Access Shell folds into the floor. 34966_ EXIT=FOUND: SURFACE Map ----- +----------------------------------------------------+ | ############ # ?? ??????????????????????? | | ############ # ? " ????????????????????????? | | # # ? """" ???????????????????????? | | # # """"" + ????????????????????? | | # # = """"" ##????????????????????? | | " # # """" ##????????????????????? | | """" # # " ##????????????????????? | | """"" + + ##????????????????????? | | """"" # # ##????????????????????? | | """" # ######################## # ???????? | | " = # ######################## # ???????? | | # # ???????? | | # # ???????? | | ########## ""#####+#####???????? | | ##########+########## ""### ???????? | | # ??????## ""##????????????????? | | ??????????????g????## T##????????????????? | | ?????????????g?g???## ""##????????????????? | | ??????????????????### ""###???????????????? | | ??????????????????### ""###???????????????? | | ??????????ssh?????## ##???????????????? | | ??????????s???????### ###???????????????? | | ????????????s?????### ###???????????????? | | ????????????h??????## ##????????????????? | | ???????????????????## ##????????????????? | | ???????????????????## @" ##????????????????? | | ???????????????????## "" ##????????????????? | | ???????????????????## ##????????????????? | | ???????????????????## ##????????????????? | | ???????????????????## ##????????????????? | | ???????????????????##""""""""""##????????????????? | | ???????????????????##"????????"##????????????????? | | ?????????????????????????????????????????????????? | | ?????????????????????????????????????????????????? | | ?????????????????????????????????????????????????? | | ??????????????????????BB????BB???????????????????? | | ??????????????????????BB????BB???????????????????? | | ?????????????????????????????????????????????????? | | ?????????????????????????????????????????????????? | | ?????????????????????????????????????????????????? | | ?????????????????????????????????????????????????? | | ?????????????????????????????????????????????????? | | ?????????????????????????????????????????????????? | | ?????????????????????????????????????????????????? | | ?????????????????????????????????????????????????? | | ?????????????????????????????????????????????????? | | ?????????????????????????????????????????????????? | | ?????????????????????????????????????????????????? | | ?????????????????????????????????????????????????? | | ?????????????????????????????????????????????????? | +----------------------------------------------------+ Best States ------------- Heat Dissipation 89 Energy Generation 49 Energy Capacity 1020 Matter Stores 300 Matter Capacity 600 Sight Range 23 Robot Scan Range 16 Terrain Scan Range 20 Terrain Scan Density 10 ECM Strength 2 Jamming Range 16 Cloak Strength 4 Power Amplification 20 Armor Coverage 450 Resistance: KI 35 Resistance: TH 35 Resistance: EX 35 Resistance: EM 60 Resistance: I 35 Resistance: S 35 Resistance: P 35 Utility Shielding 66 Melee Speed Boost 30 Evasion (%) 71 Targeting Accuracy 8 Melee Accuracy 24 Target Analysis 10 Recoil Reduction 4 Matter Filtering 50 Kinecelleration 30 Offensive Hacking 34 Defensive Hacking 14 Relay Coupler Types 5 Relay Coupler Value 139 Item Schematics ----------------- Arm. Treads | -8/Materials | Hacked Adv. Treads | -8/Materials | Hacked Imp. Linear Gravjet | -7/Factory | Scanalyzed Power Sword | -6/Factory | Hacked Imp. Utility Shielding | -6/Factory | Scanalyzed Imp. Plasma Cutter | -6/Factory | Hacked Fission Core | -6/Factory | Hacked Neutrino Core | -6/Factory | Hacked F-cell Engine | -6/Factory | Hacked Energy Well | -6/Factory | Hacked Imp. Hacking Suite | -6/Factory | Hacked Microactuators | -6/Factory | Hacked Imp. Trap Scanner | -6/Factory | Hacked Imp. Transmission Jammer | -6/Factory | Hacked Enh. Optical Array | -6/Factory | Hacked Adv. Melee Analysis Suite | -5/Factory | Hacked Railgun | -5/Factory | Hacked Assault Drone Bay | -4/Zhirov | Free Exp. Heat Sink | -4/Zhirov | Free Exp. Optical Array | -4/Zhirov | Free Imp. Arc Thrower | -4/Zhirov | Free Cmb. Linear Gravjet | -3/Research | Hacked Remote Datajack | -3/Research | Scanalyzed Adv. Transmission Jammer | -3/Research | Scanalyzed Adv. Reaction Control System | -3/Research | Scanalyzed Com. Mass Driver | -3/Research | Scanalyzed Hellfire Missile Launcher | -3/Research | Scanalyzed Component Analysis Suite | -3/Research | Scanalyzed Cld. Antimatter Reactor | -3/Research | Scanalyzed Imp. Gyrokinetic Inverter | -3/Research | Scanalyzed Cld. Gravmag System | -3/Research | Scanalyzed Robot Schematics ------------------ None Fabricated ------------ Arm. Treads | x2 | -7/Factory Adv. Treads | x2 | -7/Factory Adv. Treads | x2 | -7/Factory Imp. Linear Gravjet | x2 | -7/Factory Imp. Linear Gravjet | x2 | -6/Factory Power Sword | x2 | -6/Factory Com. Mass Driver | x1 | -6/Factory | Preloaded Imp. Linear Gravjet | x2 | -6/Factory O-24 Administrator | x1 | -6/Factory | Preloaded Imp. Linear Gravjet | x2 | -6/Factory Imp. Linear Gravjet | x2 | -6/Factory F-cell Engine | x1 | -6/Factory Imp. Linear Gravjet | x2 | -5/Factory Imp. Linear Gravjet | x2 | -5/Factory F-cell Engine | x1 | -5/Factory Imp. Linear Gravjet | x2 | -3/Research Cmb. Linear Gravjet | x2 | -3/Research Cmb. Linear Gravjet | x2 | -3/Research Com. Mass Driver | x1 | -3/Research Exp. Optical Array | x1 | -3/Research Imp. Utility Shielding | x2 | -3/Research Alien Tech Used ----------------- Integrated Dissipator Achievements -------------- Batter Up Revising The Future Revolutionary Research Challenges ------------ None Game ------ Seed TeslaWarpScanner Manual? 0 Play Time 13:01:36 Cumulative 322.1 hours Start 2024.04.19 @ 23:21:52 End 2024.04.23 @ 14:45:22 Sessions 14 Manual Loads 0 Difficulty Explorer Special Mode None Game No. 107 Rogue 68 Adventurer 0 Explorer 39 Win Type 0 Total 10 Types 8/1/1/0/0/0/0/0/0 Lore% 68 Gallery% 74 Achievement% 66 Wizard Run 0 Options --------- Layout 0 ASCII 1 Keyboard 1 Movement Arrows Keybinds 0 Fullscreen 2 Font 36/Smallcaps Map View 76x50 Zoom Use 0% Tactical HUD 1 Map Filters NONE Filters NONE Steam 1 RUN: 07edeeac-715f-452e-90fc-20ac86fba263